[Event "Early-Titled-Tuesday-Blitz-November-28-2023"]
[Site "Chess.com"]
[Date "2023.11.28"]
[Round "1"]
[White "nicolochessit"]
[Black "wadsy27"]
[Result "0-1"]
[WhiteElo "2323"]
[BlackElo "2626"]
[TimeControl "180+1"]
[EndTime "8:07:11 PST"]
[Termination "wadsy27 won on time"]

1. e4 {[%clk 0:02:59.7]} 1... c5 {[%clk 0:02:58.5]} 2. Nf3 {[%clk 0:02:58.9]}
2... Nc6 {[%clk 0:02:54]} 3. c3 {[%clk 0:02:57.7]} 3... Nf6 {[%clk 0:02:52]} 4.
e5 {[%clk 0:02:57.4]} 4... Nd5 {[%clk 0:02:52.2]} 5. d4 {[%clk 0:02:53.5]} 5...
cxd4 {[%clk 0:02:51.6]} 6. cxd4 {[%clk 0:02:54.4]} 6... e6 {[%clk 0:02:51.6]} 7.
Bc4 {[%clk 0:02:52.7]} 7... d6 {[%clk 0:02:49.5]} 8. O-O {[%clk 0:02:44.1]} 8...
dxe5 {[%clk 0:02:46.3]} 9. dxe5 {[%clk 0:02:42]} 9... Be7 {[%clk 0:02:45.9]} 10.
Bxd5 {[%clk 0:02:40.2]} 10... exd5 {[%clk 0:02:45.5]} 11. Nc3 {[%clk 0:02:39.9]}
11... Be6 {[%clk 0:02:45.6]} 12. Be3 {[%clk 0:02:38.7]} 12... O-O {[%clk
0:02:43.1]} 13. Nd4 {[%clk 0:02:31.3]} 13... Nxe5 {[%clk 0:02:29.7]} 14. Rc1
{[%clk 0:02:21.3]} 14... Nc4 {[%clk 0:02:20.4]} 15. Qe2 {[%clk 0:02:13.3]} 15...
Bf6 {[%clk 0:01:55.5]} 16. Rfd1 {[%clk 0:01:57.9]} 16... Nxe3 {[%clk 0:01:32.8]}
17. Qxe3 {[%clk 0:01:49.6]} 17... Re8 {[%clk 0:01:31.8]} 18. Qg3 {[%clk
0:01:45.4]} 18... Rc8 {[%clk 0:01:03.6]} 19. Ncb5 {[%clk 0:01:19.4]} 19... Rxc1
{[%clk 0:00:58.1]} 20. Rxc1 {[%clk 0:01:20.3]} 20... Qb6 {[%clk 0:00:43.2]} 21.
Nxe6 {[%clk 0:00:40.4]} 21... Qxe6 {[%clk 0:00:42.6]} 22. Rf1 {[%clk 0:00:20]}
22... Be5 {[%clk 0:00:38.4]} 23. Qe3 {[%clk 0:00:16.8]} 23... a6 {[%clk
0:00:37]} 24. Nd4 {[%clk 0:00:12.9]} 24... Qf6 {[%clk 0:00:36.2]} 25. Re1 {[%clk
0:00:01.5]} 25... Bxh2+ {[%clk 0:00:34.8]} 26. Kxh2 {[%clk 0:00:01.8]} 26...
Rxe3 {[%clk 0:00:35]} 27. Rxe3 {[%clk 0:00:02.2]} 27... g6 {[%clk 0:00:29.5]}
28. Kg1 {[%clk 0:00:01.8]} 28... Qxd4 {[%clk 0:00:29.1]} 29. Re8+ {[%clk
0:00:01.9]} 29... Kg7 {[%clk 0:00:29.1]} 30. Re7 {[%clk 0:00:02.8]} 30... Qxb2
{[%clk 0:00:29.2]} 31. Rd7 {[%clk 0:00:02.3]} 31... Qxa2 {[%clk 0:00:28.7]} 32.
g4 {[%clk 0:00:01]} 32... Qa1+ {[%clk 0:00:28]} 33. Kg2 {[%clk 0:00:01.1]} 33...
Qe5 {[%clk 0:00:28.5]} 34. g5 {[%clk 0:00:01.9]} 34... Qxg5+ {[%clk 0:00:28.7]}
35. Kf1 {[%clk 0:00:01.6]} 35... a5 {[%clk 0:00:28.1]} 36. f4 {[%clk 0:00:02.5]}
36... Qxf4+ {[%clk 0:00:28]} 37. Ke2 {[%clk 0:00:02]} 37... Qg4+ {[%clk
0:00:28]} 38. Kd3 {[%clk 0:00:01.4]} 38... Qxd7 {[%clk 0:00:28.5]} 39. Kd4
{[%clk 0:00:02]} 39... Qe6 {[%clk 0:00:28.5]} 40. Kc5 {[%clk 0:00:02.3]} 40...
d4 {[%clk 0:00:29]} 41. Kb5 {[%clk 0:00:02.1]} 41... Qd5+ {[%clk 0:00:28.2]} 0-1

[Event "Early-Titled-Tuesday-Blitz-November-28-2023"]
[Site "Chess.com"]
[Date "2023.11.28"]
[Round "1"]
[White "CuteSheepCloud"]
[Black "ammarzooqi"]
[Result "1/2-1/2"]
[WhiteElo "2631"]
[BlackElo "2341"]
[TimeControl "180+1"]
[EndTime "8:07:14 PST"]
[Termination "Game drawn by stalemate"]

1. f4 {[%clk 0:02:56.7]} 1... Nf6 {[%clk 0:02:58.9]} 2. g3 {[%clk 0:02:56.6]}
2... g6 {[%clk 0:02:58.8]} 3. Bg2 {[%clk 0:02:57.2]} 3... Bg7 {[%clk 0:02:59.1]}
4. e4 {[%clk 0:02:57.8]} 4... d6 {[%clk 0:02:59.1]} 5. Ne2 {[%clk 0:02:56.6]}
5... O-O {[%clk 0:02:59.1]} 6. O-O {[%clk 0:02:56.9]} 6... h5 {[%clk 0:02:58.5]}
7. d4 {[%clk 0:02:56.5]} 7... c5 {[%clk 0:02:58.1]} 8. c3 {[%clk 0:02:56.5]}
8... Nc6 {[%clk 0:02:53.3]} 9. h3 {[%clk 0:02:52.9]} 9... Qb6 {[%clk 0:02:48.3]}
10. Kh2 {[%clk 0:02:49.2]} 10... Bd7 {[%clk 0:02:43.8]} 11. d5 {[%clk
0:02:47.4]} 11... Nd8 {[%clk 0:02:37.6]} 12. Nd2 {[%clk 0:02:43.9]} 12... e6
{[%clk 0:02:34.9]} 13. Nc4 {[%clk 0:02:34]} 13... Qc7 {[%clk 0:02:34.5]} 14.
dxe6 {[%clk 0:02:33.9]} 14... Bb5 {[%clk 0:02:23.4]} 15. exf7+ {[%clk
0:02:20.6]} 15... Nxf7 {[%clk 0:02:23.5]} 16. Ne3 {[%clk 0:02:18.1]} 16... Rae8
{[%clk 0:02:17.4]} 17. c4 {[%clk 0:02:14.5]} 17... Bc6 {[%clk 0:02:14.1]} 18.
Nd5 {[%clk 0:02:11.3]} 18... Bxd5 {[%clk 0:02:11]} 19. exd5 {[%clk 0:02:10.7]}
19... b5 {[%clk 0:02:08.6]} 20. cxb5 {[%clk 0:02:09.8]} 20... Re7 {[%clk
0:01:45.6]} 21. f5 {[%clk 0:02:05.3]} 21... g5 {[%clk 0:01:40.3]} 22. h4 {[%clk
0:01:48.1]} 22... gxh4 {[%clk 0:01:31]} 23. Nf4 {[%clk 0:01:44.1]} 23... hxg3+
{[%clk 0:01:22.6]} 24. Kh1 {[%clk 0:01:43.3]} 24... Ng4 {[%clk 0:01:08.1]} 25.
Nxh5 {[%clk 0:01:33.3]} 25... Nf2+ {[%clk 0:00:46.9]} 26. Rxf2 {[%clk
0:01:32.7]} 26... gxf2 {[%clk 0:00:47.8]} 27. f6 {[%clk 0:01:32.3]} 27... Re1+
{[%clk 0:00:47.5]} 28. Kh2 {[%clk 0:01:31.6]} 28... Rxd1 {[%clk 0:00:42.5]} 29.
fxg7 {[%clk 0:01:32.2]} 29... Rb8 {[%clk 0:00:29.8]} 30. Bh6 {[%clk 0:01:29.1]}
30... Nxh6 {[%clk 0:00:28.7]} 31. Rxd1 {[%clk 0:01:28]} 31... Qf7 {[%clk
0:00:26.9]} 32. Ng3 {[%clk 0:01:28.2]} 32... Ng4+ {[%clk 0:00:25.6]} 33. Kh3
{[%clk 0:01:28.4]} 33... Ne3 {[%clk 0:00:23.7]} 34. Rd3 {[%clk 0:01:22.4]} 34...
Nxg2 {[%clk 0:00:23.2]} 35. Kxg2 {[%clk 0:01:22.1]} 35... Rxb5 {[%clk
0:00:21.8]} 36. b3 {[%clk 0:01:20.2]} 36... c4 {[%clk 0:00:21.3]} 37. bxc4
{[%clk 0:01:19.4]} 37... Rb1 {[%clk 0:00:21.2]} 38. Nf1 {[%clk 0:01:16.3]} 38...
Qxg7+ {[%clk 0:00:19]} 39. Rg3 {[%clk 0:01:12.6]} 39... Rb2 {[%clk 0:00:14.2]}
40. a4 {[%clk 0:01:07.9]} 40... Ra2 {[%clk 0:00:14.3]} 41. Rxg7+ {[%clk
0:01:04.8]} 41... Kxg7 {[%clk 0:00:14.4]} 42. Ne3 {[%clk 0:01:05.7]} 42... Kf6
{[%clk 0:00:13.5]} 43. Kf3 {[%clk 0:01:03.9]} 43... Ke5 {[%clk 0:00:13.6]} 44.
Ng4+ {[%clk 0:00:59.9]} 44... Kd4 {[%clk 0:00:13.7]} 45. Nxf2 {[%clk 0:01:00.6]}
45... Kxc4 {[%clk 0:00:07.7]} 46. Nd1 {[%clk 0:01:01.1]} 46... Kxd5 {[%clk
0:00:07.3]} 47. Nc3+ {[%clk 0:01:01.4]} 47... Kc4 {[%clk 0:00:08.2]} 48. Nxa2
{[%clk 0:01:01.4]} 48... Kb3 {[%clk 0:00:08.9]} 49. a5 {[%clk 0:01:01.4]} 49...
Kxa2 {[%clk 0:00:08.8]} 50. Ke4 {[%clk 0:01:02.3]} 50... Ka3 {[%clk 0:00:09]}
51. Kd5 {[%clk 0:01:03.2]} 51... Ka4 {[%clk 0:00:09.5]} 52. a6 {[%clk
0:01:04.1]} 52... Ka5 {[%clk 0:00:09.6]} 53. Kxd6 {[%clk 0:01:04.8]} 53... Kxa6
{[%clk 0:00:10.3]} 54. Kc5 {[%clk 0:01:05.7]} 54... Ka5 {[%clk 0:00:11.2]} 55.
Kc4 {[%clk 0:01:06.6]} 55... Ka4 {[%clk 0:00:12.1]} 56. Kc3 {[%clk 0:01:07.5]}
56... a5 {[%clk 0:00:13]} 57. Kb2 {[%clk 0:01:07.9]} 57... Kb4 {[%clk
0:00:12.9]} 58. Ka1 {[%clk 0:01:08.8]} 58... a4 {[%clk 0:00:13.8]} 59. Ka2
{[%clk 0:01:08.3]} 59... a3 {[%clk 0:00:14.7]} 60. Ka1 {[%clk 0:01:09.2]} 60...
Kb3 {[%clk 0:00:15.6]} 61. Kb1 {[%clk 0:01:09.5]} 61... a2+ {[%clk 0:00:16.5]}
62. Ka1 {[%clk 0:01:10.4]} 62... Ka3 {[%clk 0:00:17.4]} 1/2-1/2

[Event "Early-Titled-Tuesday-Blitz-November-28-2023"]
[Site "Chess.com"]
[Date "2023.11.28"]
[Round "1"]
[White "Azerichess"]
[Black "whitemirrorninja"]
[Result "1-0"]
[WhiteElo "3040"]
[BlackElo "2519"]
[TimeControl "180+1"]
[EndTime "8:07:17 PST"]
[Termination "Azerichess won by resignation"]

1. d4 {[%clk 0:03:00.9]} 1... Nf6 {[%clk 0:02:58.8]} 2. Bg5 {[%clk 0:03:00.8]}
2... g6 {[%clk 0:02:55.8]} 3. Bxf6 {[%clk 0:02:59.7]} 3... exf6 {[%clk
0:02:56.7]} 4. c4 {[%clk 0:03:00.2]} 4... f5 {[%clk 0:02:52.8]} 5. Nc3 {[%clk
0:02:58.2]} 5... Bg7 {[%clk 0:02:53.4]} 6. g3 {[%clk 0:02:56.9]} 6... O-O {[%clk
0:02:53.9]} 7. Bg2 {[%clk 0:02:55.4]} 7... Re8 {[%clk 0:02:54.5]} 8. e3 {[%clk
0:02:54.8]} 8... d6 {[%clk 0:02:55]} 9. Nge2 {[%clk 0:02:51]} 9... Nd7 {[%clk
0:02:55.3]} 10. O-O {[%clk 0:02:51.3]} 10... Nf6 {[%clk 0:02:55.4]} 11. b4
{[%clk 0:02:51.8]} 11... h5 {[%clk 0:02:54.8]} 12. h4 {[%clk 0:02:51.6]} 12...
Rb8 {[%clk 0:02:50.1]} 13. Nf4 {[%clk 0:02:48]} 13... Bd7 {[%clk 0:02:48.6]} 14.
a4 {[%clk 0:02:44.7]} 14... Bc6 {[%clk 0:02:45.9]} 15. Ncd5 {[%clk 0:02:30.3]}
15... Nxd5 {[%clk 0:02:29.2]} 16. cxd5 {[%clk 0:02:31.2]} 16... Bd7 {[%clk
0:02:28.8]} 17. b5 {[%clk 0:02:31.5]} 17... Bh6 {[%clk 0:02:15]} 18. Nd3 {[%clk
0:02:29.1]} 18... Re7 {[%clk 0:02:06.9]} 19. Re1 {[%clk 0:02:28.7]} 19... a6
{[%clk 0:01:44.6]} 20. Qb3 {[%clk 0:02:25.2]} 20... axb5 {[%clk 0:01:42.7]} 21.
axb5 {[%clk 0:02:26.1]} 21... Ra8 {[%clk 0:01:43.1]} 22. Rxa8 {[%clk 0:02:20.1]}
22... Qxa8 {[%clk 0:01:43.7]} 23. b6 {[%clk 0:02:20]} 23... Qa4 {[%clk 0:01:01]}
24. Qxa4 {[%clk 0:02:06.6]} 24... Bxa4 {[%clk 0:01:01.9]} 25. Nb2 {[%clk
0:02:06.8]} 25... Bb5 {[%clk 0:00:59.7]} 26. Bf1 {[%clk 0:02:03.7]} 26... Bxf1
{[%clk 0:00:51.8]} 27. Kxf1 {[%clk 0:02:04.6]} 27... cxb6 {[%clk 0:00:48.8]} 28.
Nc4 {[%clk 0:02:04.4]} 28... b5 {[%clk 0:00:38.2]} 29. Na5 {[%clk 0:01:53.3]}
29... Rc7 {[%clk 0:00:35.3]} 30. Rb1 {[%clk 0:01:53.1]} 30... f4 {[%clk
0:00:20.3]} 31. gxf4 {[%clk 0:01:51.8]} 31... Bf8 {[%clk 0:00:21]} 32. Kg2
{[%clk 0:01:50.9]} 32... Be7 {[%clk 0:00:21.5]} 33. Kg3 {[%clk 0:01:51.4]} 33...
Kg7 {[%clk 0:00:19.6]} 34. Rxb5 {[%clk 0:01:44.2]} 34... Rc1 {[%clk 0:00:19.5]}
35. Rxb7 {[%clk 0:01:44.8]} 35... Bf6 {[%clk 0:00:14.6]} 36. Rd7 {[%clk
0:01:31.4]} 36... Rg1+ {[%clk 0:00:14.6]} 37. Kh2 {[%clk 0:01:27.9]} 37... Rg4
{[%clk 0:00:15.1]} 38. f3 {[%clk 0:01:23.3]} 38... Rxh4+ {[%clk 0:00:11.3]} 39.
Kg2 {[%clk 0:01:23.9]} 39... Bxd4 {[%clk 0:00:08.3]} 40. exd4 {[%clk 0:01:23.5]}
40... Rxf4 {[%clk 0:00:09]} 41. Rxd6 {[%clk 0:01:14.8]} 41... Rxd4 {[%clk
0:00:09.5]} 42. Nc6 {[%clk 0:01:09.9]} 42... Rd2+ {[%clk 0:00:09.2]} 43. Kg3
{[%clk 0:01:10.5]} 43... g5 {[%clk 0:00:09.5]} 44. Ne5 {[%clk 0:01:00.1]} 44...
f5 {[%clk 0:00:07]} 45. Rg6+ {[%clk 0:00:57.2]} 45... Kh7 {[%clk 0:00:07.1]} 46.
Rxg5 {[%clk 0:00:56.8]} 46... Rxd5 {[%clk 0:00:05.8]} 47. Rxh5+ {[%clk
0:00:56.6]} 47... Kg7 {[%clk 0:00:06]} 48. Rxf5 {[%clk 0:00:57.2]} 48... Ra5
{[%clk 0:00:04.1]} 49. f4 {[%clk 0:00:56.3]} 49... Kh7 {[%clk 0:00:03.9]} 50.
Rh5+ {[%clk 0:00:55.3]} 50... Kg7 {[%clk 0:00:03.6]} 51. Rg5+ {[%clk 0:00:55.9]}
51... Kh7 {[%clk 0:00:03.6]} 52. Kg4 {[%clk 0:00:56.3]} 52... Ra1 {[%clk
0:00:02.7]} 53. Nd7 {[%clk 0:00:55.8]} 53... Rg1+ {[%clk 0:00:03]} 54. Kf5
{[%clk 0:00:55.5]} 54... Rd1 {[%clk 0:00:03.3]} 55. Nf6+ {[%clk 0:00:55.6]} 1-0

[Event "Early-Titled-Tuesday-Blitz-November-28-2023"]
[Site "Chess.com"]
[Date "2023.11.28"]
[Round "1"]
[White "FischerKasparow"]
[Black "noblerone"]
[Result "0-1"]
[WhiteElo "2101"]
[BlackElo "2545"]
[TimeControl "180+1"]
[EndTime "8:07:17 PST"]
[Termination "noblerone won on time"]

1. e4 {[%clk 0:02:57.2]} 1... d5 {[%clk 0:02:54.4]} 2. exd5 {[%clk 0:02:55.1]}
2... Qxd5 {[%clk 0:02:48.5]} 3. Nc3 {[%clk 0:02:52.9]} 3... Qd8 {[%clk
0:02:47.3]} 4. Bc4 {[%clk 0:02:52.8]} 4... Nf6 {[%clk 0:02:46.5]} 5. Nf3 {[%clk
0:02:50.9]} 5... a6 {[%clk 0:02:46.2]} 6. a4 {[%clk 0:02:49.9]} 6... Nc6 {[%clk
0:02:44.2]} 7. O-O {[%clk 0:02:47.5]} 7... Bf5 {[%clk 0:02:42.8]} 8. d3 {[%clk
0:02:45.9]} 8... e6 {[%clk 0:02:42.9]} 9. Qe2 {[%clk 0:02:41.5]} 9... Be7 {[%clk
0:02:40.7]} 10. h3 {[%clk 0:02:34]} 10... O-O {[%clk 0:02:38.6]} 11. a5 {[%clk
0:02:28.4]} 11... h6 {[%clk 0:02:28.1]} 12. Bf4 {[%clk 0:02:26.1]} 12... Bb4
{[%clk 0:02:20.3]} 13. Ne4 {[%clk 0:01:46.6]} 13... Bxa5 {[%clk 0:01:56.6]} 14.
c3 {[%clk 0:01:26.5]} 14... Bb6 {[%clk 0:01:53.9]} 15. Ne5 {[%clk 0:01:22.6]}
15... Nxe5 {[%clk 0:01:40.3]} 16. Bxe5 {[%clk 0:01:21.9]} 16... Bxe4 {[%clk
0:01:25.3]} 17. dxe4 {[%clk 0:01:22.8]} 17... Qe7 {[%clk 0:01:23.4]} 18. Qf3
{[%clk 0:01:07.5]} 18... Nd7 {[%clk 0:01:08.7]} 19. Bf4 {[%clk 0:00:52.6]} 19...
Qf6 {[%clk 0:01:01]} 20. Qg3 {[%clk 0:00:49.4]} 20... e5 {[%clk 0:00:55.8]} 21.
Bd2 {[%clk 0:00:43.2]} 21... Nc5 {[%clk 0:00:49.1]} 22. Qf3 {[%clk 0:00:33]}
22... Qxf3 {[%clk 0:00:45.3]} 23. gxf3 {[%clk 0:00:33.9]} 23... Rfd8 {[%clk
0:00:43.7]} 24. Be3 {[%clk 0:00:32.8]} 24... Nd7 {[%clk 0:00:37.6]} 25. Bd2
{[%clk 0:00:19.9]} 25... Kf8 {[%clk 0:00:34.4]} 26. Rfd1 {[%clk 0:00:18.8]}
26... Ke7 {[%clk 0:00:33]} 27. Kg2 {[%clk 0:00:19.1]} 27... Nf6 {[%clk
0:00:30.4]} 28. Be3 {[%clk 0:00:13.3]} 28... Bxe3 {[%clk 0:00:28.9]} 29. fxe3
{[%clk 0:00:14.2]} 29... c6 {[%clk 0:00:29.1]} 30. Bb3 {[%clk 0:00:09.5]} 30...
Ne8 {[%clk 0:00:24.1]} 31. f4 {[%clk 0:00:07.3]} 31... exf4 {[%clk 0:00:19.5]}
32. exf4 {[%clk 0:00:08.2]} 32... Nf6 {[%clk 0:00:20.3]} 33. Kf3 {[%clk
0:00:08.1]} 33... Nd7 {[%clk 0:00:18.4]} 34. e5 {[%clk 0:00:07.1]} 34... Nc5
{[%clk 0:00:18.1]} 35. Bc2 {[%clk 0:00:07.4]} 35... Ne6 {[%clk 0:00:17.2]} 36.
f5 {[%clk 0:00:05.2]} 36... Nc7 {[%clk 0:00:15.9]} 37. Ke4 {[%clk 0:00:04]}
37... Nd5 {[%clk 0:00:15.6]} 0-1

[Event "Early-Titled-Tuesday-Blitz-November-28-2023"]
[Site "Chess.com"]
[Date "2023.11.28"]
[Round "1"]
[White "Grischuk"]
[Black "GKARU"]
[Result "1-0"]
[WhiteElo "3056"]
[BlackElo "2520"]
[TimeControl "180+1"]
[EndTime "8:07:20 PST"]
[Termination "Grischuk won on time"]

1. d4 {[%clk 0:03:00.9]} 1... Nf6 {[%clk 0:02:36.3]} 2. c4 {[%clk 0:03:00.1]}
2... e6 {[%clk 0:02:36.1]} 3. Bg5 {[%clk 0:02:59.7]} 3... d5 {[%clk 0:02:36.9]}
4. e3 {[%clk 0:02:59.4]} 4... Be7 {[%clk 0:02:36.5]} 5. Nc3 {[%clk 0:02:59.6]}
5... O-O {[%clk 0:02:37.1]} 6. Qc2 {[%clk 0:02:59.7]} 6... b6 {[%clk 0:02:37.1]}
7. Nf3 {[%clk 0:02:56.3]} 7... Bb7 {[%clk 0:02:34.7]} 8. Bxf6 {[%clk 0:02:56.4]}
8... Bxf6 {[%clk 0:02:34.4]} 9. cxd5 {[%clk 0:02:57.3]} 9... exd5 {[%clk
0:02:34]} 10. Rd1 {[%clk 0:02:58]} 10... Nd7 {[%clk 0:02:28]} 11. Bd3 {[%clk
0:02:55.5]} 11... g6 {[%clk 0:02:27.9]} 12. h4 {[%clk 0:02:55.3]} 12... Re8
{[%clk 0:02:24.9]} 13. h5 {[%clk 0:02:54.9]} 13... Nf8 {[%clk 0:02:25.6]} 14. b4
{[%clk 0:02:50.8]} 14... c5 {[%clk 0:02:18]} 15. bxc5 {[%clk 0:02:45.9]} 15...
bxc5 {[%clk 0:02:18.9]} 16. Bb5 {[%clk 0:02:35.7]} 16... Re6 {[%clk 0:01:38.5]}
17. O-O {[%clk 0:02:29.5]} 17... Rc8 {[%clk 0:01:35.5]} 18. Qd2 {[%clk
0:02:22.8]} 18... Rb6 {[%clk 0:01:27.1]} 19. Be2 {[%clk 0:02:09.3]} 19... Rb4
{[%clk 0:01:18.1]} 20. a3 {[%clk 0:01:47.1]} 20... cxd4 {[%clk 0:01:04.6]} 21.
Nxd4 {[%clk 0:01:31.3]} 21... Rb6 {[%clk 0:01:00.4]} 22. Bf3 {[%clk 0:01:30.1]}
22... Kg7 {[%clk 0:00:50.8]} 23. a4 {[%clk 0:01:09.3]} 23... Ne6 {[%clk
0:00:49.4]} 24. Nce2 {[%clk 0:00:59.4]} 24... Ra6 {[%clk 0:00:41.3]} 25. Nxe6+
{[%clk 0:00:52.3]} 25... fxe6 {[%clk 0:00:40.8]} 26. hxg6 {[%clk 0:00:51.9]}
26... hxg6 {[%clk 0:00:41.4]} 27. Nf4 {[%clk 0:00:52.5]} 27... Qe8 {[%clk
0:00:31.8]} 28. Rb1 {[%clk 0:00:36.9]} 28... Ba8 {[%clk 0:00:31.3]} 29. Be2
{[%clk 0:00:36.7]} 29... Rb6 {[%clk 0:00:21.2]} 30. a5 {[%clk 0:00:36.7]} 30...
Rxb1 {[%clk 0:00:20.4]} 31. Rxb1 {[%clk 0:00:37.6]} 31... Rd8 {[%clk 0:00:16.9]}
32. Bg4 {[%clk 0:00:36.7]} 32... Rd6 {[%clk 0:00:15.8]} 33. Qc2 {[%clk
0:00:35.8]} 33... e5 {[%clk 0:00:15]} 34. Qc7+ {[%clk 0:00:10.1]} 34... Qd7
{[%clk 0:00:14.7]} 35. Bxd7 {[%clk 0:00:09.5]} 1-0

[Event "Early-Titled-Tuesday-Blitz-November-28-2023"]
[Site "Chess.com"]
[Date "2023.11.28"]
[Round "1"]
[White "TomLiu777"]
[Black "FairChess_on_YouTube"]
[Result "0-1"]
[WhiteElo "2523"]
[BlackElo "3091"]
[TimeControl "180+1"]
[EndTime "8:07:22 PST"]
[Termination "FairChess_on_YouTube won by checkmate"]

1. c4 {[%clk 0:02:58.4]} 1... Nf6 {[%clk 0:02:57]} 2. Nc3 {[%clk 0:02:57.2]}
2... e5 {[%clk 0:02:53.6]} 3. Nf3 {[%clk 0:02:56.6]} 3... Nc6 {[%clk 0:02:53.5]}
4. e4 {[%clk 0:02:57.2]} 4... Bb4 {[%clk 0:02:50.9]} 5. d3 {[%clk 0:02:56.8]}
5... d6 {[%clk 0:02:49.7]} 6. a3 {[%clk 0:02:56.1]} 6... Bc5 {[%clk 0:02:48]} 7.
b4 {[%clk 0:02:56.5]} 7... Bb6 {[%clk 0:02:48.1]} 8. Na4 {[%clk 0:02:57.2]} 8...
Bg4 {[%clk 0:02:46.7]} 9. Be2 {[%clk 0:02:56.3]} 9... Bxf3 {[%clk 0:02:45.8]}
10. Bxf3 {[%clk 0:02:57.2]} 10... Bd4 {[%clk 0:02:46]} 11. Rb1 {[%clk
0:02:56.7]} 11... a5 {[%clk 0:02:35.2]} 12. b5 {[%clk 0:02:47.6]} 12... Nb8
{[%clk 0:02:31.9]} 13. Qd2 {[%clk 0:02:40.3]} 13... Nbd7 {[%clk 0:02:29.1]} 14.
O-O {[%clk 0:02:40.7]} 14... O-O {[%clk 0:02:27.4]} 15. Bd1 {[%clk 0:02:39.9]}
15... Nc5 {[%clk 0:02:23.1]} 16. Nc3 {[%clk 0:02:29.4]} 16... Nfd7 {[%clk
0:02:09.4]} 17. Ne2 {[%clk 0:02:26.8]} 17... Ne6 {[%clk 0:02:09.4]} 18. Nxd4
{[%clk 0:02:23.2]} 18... Nxd4 {[%clk 0:02:10.3]} 19. Bb2 {[%clk 0:02:21.4]}
19... Nc5 {[%clk 0:02:08.1]} 20. f3 {[%clk 0:01:52.1]} 20... Nce6 {[%clk
0:02:02.7]} 21. f4 {[%clk 0:01:49.7]} 21... exf4 {[%clk 0:01:57.5]} 22. Qf2
{[%clk 0:01:16.9]} 22... Qf6 {[%clk 0:01:49]} 23. Bg4 {[%clk 0:01:15.8]} 23...
Qg5 {[%clk 0:01:48]} 24. h3 {[%clk 0:01:05]} 24... h5 {[%clk 0:01:42.6]} 25. Bd1
{[%clk 0:00:46.7]} 25... Qe5 {[%clk 0:01:29.4]} 26. Bxh5 {[%clk 0:00:40.8]}
26... Qxh5 {[%clk 0:01:21.8]} 27. Bxd4 {[%clk 0:00:39.3]} 27... Rae8 {[%clk
0:01:14.2]} 28. Bc3 {[%clk 0:00:36.7]} 28... f5 {[%clk 0:01:10.9]} 29. e5 {[%clk
0:00:26.2]} 29... Rd8 {[%clk 0:00:40.1]} 30. exd6 {[%clk 0:00:20.3]} 30... Rxd6
{[%clk 0:00:40.4]} 31. d4 {[%clk 0:00:18.6]} 31... Ng5 {[%clk 0:00:40.7]} 32.
Bxa5 {[%clk 0:00:14.6]} 32... Rg6 {[%clk 0:00:31.2]} 33. Kh2 {[%clk 0:00:10.6]}
33... Nxh3 {[%clk 0:00:24.9]} 34. gxh3 {[%clk 0:00:10.1]} 34... Rg3 {[%clk
0:00:24.6]} 35. Qxg3 {[%clk 0:00:05.9]} 35... fxg3+ {[%clk 0:00:25.5]} 36. Kxg3
{[%clk 0:00:06.7]} 36... f4+ {[%clk 0:00:26.1]} 37. Kh2 {[%clk 0:00:03.2]} 37...
Qe2+ {[%clk 0:00:26]} 38. Kh1 {[%clk 0:00:02.8]} 38... Qe4+ {[%clk 0:00:25.5]}
39. Kh2 {[%clk 0:00:02.5]} 39... Qe2+ {[%clk 0:00:25.8]} 40. Kh1 {[%clk
0:00:02.2]} 40... f3 {[%clk 0:00:26.4]} 41. Kg1 {[%clk 0:00:02.1]} 41... Qg2#
{[%clk 0:00:26.3]} 0-1

[Event "Early-Titled-Tuesday-Blitz-November-28-2023"]
[Site "Chess.com"]
[Date "2023.11.28"]
[Round "1"]
[White "BogdanDeac"]
[Black "GiorgianBarbosa"]
[Result "1-0"]
[WhiteElo "2989"]
[BlackElo "2514"]
[TimeControl "180+1"]
[EndTime "8:07:23 PST"]
[Termination "BogdanDeac won by resignation"]

1. b3 {[%clk 0:03:00.9]} 1... Nf6 {[%clk 0:02:59.9]} 2. Bb2 {[%clk 0:03:01.8]}
2... g6 {[%clk 0:02:59.1]} 3. Nf3 {[%clk 0:03:00.5]} 3... Bg7 {[%clk 0:02:59.3]}
4. g3 {[%clk 0:03:01.4]} 4... O-O {[%clk 0:02:59.5]} 5. Bg2 {[%clk 0:03:01.5]}
5... d5 {[%clk 0:02:59.6]} 6. c4 {[%clk 0:03:01.1]} 6... c6 {[%clk 0:02:57]} 7.
O-O {[%clk 0:03:00.8]} 7... Bg4 {[%clk 0:02:55.5]} 8. d3 {[%clk 0:03:01.1]} 8...
Bxf3 {[%clk 0:02:53.5]} 9. Bxf3 {[%clk 0:03:01]} 9... e6 {[%clk 0:02:54]} 10.
Nd2 {[%clk 0:03:00.3]} 10... Nbd7 {[%clk 0:02:53.2]} 11. d4 {[%clk 0:03:00.7]}
11... a6 {[%clk 0:02:44.5]} 12. Rc1 {[%clk 0:02:59.2]} 12... Re8 {[%clk
0:02:36.8]} 13. e3 {[%clk 0:02:56.5]} 13... b5 {[%clk 0:02:25.7]} 14. cxd5
{[%clk 0:02:51.1]} 14... cxd5 {[%clk 0:02:24.1]} 15. Rc6 {[%clk 0:02:51.6]}
15... Qa5 {[%clk 0:01:51.3]} 16. Qc2 {[%clk 0:02:51]} 16... Bf8 {[%clk
0:01:47.2]} 17. a3 {[%clk 0:02:45.6]} 17... Bxa3 {[%clk 0:01:39.3]} 18. Ra1
{[%clk 0:02:44.4]} 18... b4 {[%clk 0:01:39.6]} 19. Nb1 {[%clk 0:02:43.9]} 19...
Qb5 {[%clk 0:01:31.6]} 20. Nxa3 {[%clk 0:02:30.8]} 20... bxa3 {[%clk 0:01:32.5]}
21. Rxa3 {[%clk 0:02:31.3]} 21... a5 {[%clk 0:01:22.1]} 22. Rc7 {[%clk
0:02:25.9]} 22... Reb8 {[%clk 0:01:09.2]} 23. Bc1 {[%clk 0:02:23.8]} 23... Qb6
{[%clk 0:00:59.4]} 24. Bd2 {[%clk 0:02:17.3]} 24... Nf8 {[%clk 0:00:43.9]} 25.
Rc6 {[%clk 0:02:07.9]} 25... Qb7 {[%clk 0:00:38.6]} 26. Bxa5 {[%clk 0:01:54.5]}
26... Rc8 {[%clk 0:00:35.9]} 27. Rxc8 {[%clk 0:01:54.4]} 27... Rxc8 {[%clk
0:00:34.9]} 28. Qd1 {[%clk 0:01:55]} 28... Ne8 {[%clk 0:00:27.3]} 29. Be1 {[%clk
0:01:47.6]} 29... Nd6 {[%clk 0:00:27.1]} 30. b4 {[%clk 0:01:48.1]} 30... Nc4
{[%clk 0:00:26.7]} 31. Ra2 {[%clk 0:01:47.8]} 31... Nd7 {[%clk 0:00:27]} 32. Qa1
{[%clk 0:01:42.7]} 32... Ndb6 {[%clk 0:00:26]} 33. Be2 {[%clk 0:01:41]} 33...
Qc6 {[%clk 0:00:24.6]} 34. Ra7 {[%clk 0:01:38.3]} 34... h5 {[%clk 0:00:24.4]}
35. h4 {[%clk 0:01:38]} 35... Qd6 {[%clk 0:00:23.9]} 36. Qa6 {[%clk 0:01:29.8]}
36... Rb8 {[%clk 0:00:23]} 37. Kg2 {[%clk 0:01:24.1]} 37... Kg7 {[%clk
0:00:22.2]} 38. Qb5 {[%clk 0:01:17.9]} 38... Qd8 {[%clk 0:00:16.5]} 39. Qa6
{[%clk 0:01:12.5]} 39... Rc8 {[%clk 0:00:15.3]} 40. Qa2 {[%clk 0:01:04.3]} 40...
Rc7 {[%clk 0:00:14.2]} 41. Rxc7 {[%clk 0:00:59.6]} 41... Qxc7 {[%clk 0:00:15.1]}
42. b5 {[%clk 0:01:00]} 42... Qd7 {[%clk 0:00:14.2]} 43. Qa6 {[%clk 0:01:00.1]}
43... Qd6 {[%clk 0:00:13.9]} 44. Ba5 {[%clk 0:00:47.2]} 44... Qc7 {[%clk
0:00:13.1]} 45. Bxc4 {[%clk 0:00:43.6]} 45... dxc4 {[%clk 0:00:11.6]} 46. Qxb6
{[%clk 0:00:39.4]} 46... Qd7 {[%clk 0:00:11.4]} 47. Qc6 {[%clk 0:00:39.4]} 47...
Qa7 {[%clk 0:00:06.8]} 48. Bc3 {[%clk 0:00:39.1]} 48... Qa4 {[%clk 0:00:06]} 49.
d5+ {[%clk 0:00:39]} 49... Kh7 {[%clk 0:00:03.2]} 50. Qd7 {[%clk 0:00:37.6]} 1-0